fUST/lending_fUST_20241023
["ID","MTS","AMOUNT","RATE_DAILY","PERIOD"]
[340671532,1729636241339,-188.275566,0.0001497,2]
[340671533,1729636241348,-151.0,0.0001497,2]
[340671534,1729636241357,-151.0,0.0001497,2]
[340671535,1729636241367,-151.0,0.0001497,2]
[340671536,1729636241377,-151.0,0.0001497,2]
[340671537,1729636241386,-203.688168,0.0001497,2]
[340671538,1729636241395,-180.90007,0.0001497,2]
[340671539,1729636241406,-203.688168,0.0001497,2]
[340671540,1729636241415,-180.90007,0.0001497,2]
[340671541,1729636241424,-151.0,0.0001497,2]
[340671542,1729636241434,-285.711451,0.0001497,2]
[340671543,1729636241443,-285.711451,0.0001497,2]
[340671544,1729636241453,-489.469351,0.0001497,2]
[340671545,1729636241463,-489.469351,0.0001497,2]
[340671546,1729636241472,-151.0,0.0001497,2]
[340671547,1729636241481,-177.860471,0.0001497,2]
[340671548,1729636241490,-177.860471,0.0001497,2]
[340671549,1729636241500,-714.356498,0.0001497,2]
[340671550,1729636241509,-714.356498,0.0001497,2]
[340671551,1729636241519,-322.657935,0.0001497,2]
[340671552,1729636241530,-345.419078,0.0001497,2]
[340671553,1729636241539,-322.657935,0.0001497,2]
[340671554,1729636241548,-266.184579,0.0001497,2]
[340671555,1729636241558,-345.419078,0.0001497,2]
[340671556,1729636241568,-266.184579,0.0001497,2]
[340671557,1729636241577,-500.0,0.00014973,2]
[340671558,1729636241586,-546.30915554,0.00014973,2]
[340671559,1729636241596,-500.0,0.00014973,2]
[340671560,1729636241606,-500.0,0.00014973,2]
[340671561,1729636241615,-500.0,0.00014973,2]
[340671562,1729636241625,-500.0,0.00014973,2]
[340671563,1729636241634,-500.0,0.00014973,2]
[340671564,1729636241644,-500.0,0.00014973,2]
[340671565,1729636241653,-500.0,0.00014973,2]
[340671566,1729636241663,-168.53867098,0.00014973,2]
[340671567,1729636241672,-324.29275017,0.00014973,2]
[340671568,1729636241682,-500.0,0.00014973,2]
[340671569,1729636241692,-316.08688168,0.00014973,2]
[340671570,1729636241702,-503.48386636,0.00014973,2]
[340671571,1729636241711,-500.17230054,0.00014973,2]
[340671572,1729636241721,-500.0,0.00014973,2]
[340671573,1729636241730,-185.902971,0.0001498,2]
[340671574,1729636241740,-151.0,0.0001498,2]
[340671575,1729636241750,-151.0,0.0001498,2]
[340671576,1729636241760,-151.0,0.0001498,2]
[340671577,1729636241769,-151.0,0.0001498,2]
[340671578,1729636241781,-151.0,0.0001498,2]
[340671579,1729636241791,-153.723935,0.0001498,2]
[340671580,1729636241801,-151.0,0.0001498,2]
[340671581,1729636241811,-151.0,0.0001498,2]
[340671582,1729636241820,-173.156103,0.0001498,2]
[340671583,1729636241830,-173.156103,0.0001498,2]
[340671584,1729636241840,-173.156103,0.0001498,2]
[340671585,1729636241850,-173.156103,0.0001498,2]
[340671586,1729636241861,-231.123131,0.0001498,2]
[340671587,1729636241870,-231.123131,0.0001498,2]
[340671588,1729636241880,-231.123131,0.0001498,2]
[340671589,1729636241889,-231.123131,0.0001498,2]
[340671590,1729636241899,-151.0,0.0001498,2]
[340671591,1729636241908,-158.891529,0.0001498,2]
[340671592,1729636241918,-151.0,0.0001498,2]
[340671593,1729636241928,-151.0,0.0001498,2]
[340671594,1729636241938,-151.0,0.0001498,2]
[340671595,1729636241948,-151.0,0.0001498,2]
[340671596,1729636241957,-151.0,0.0001498,2]
[340671597,1729636241966,-151.0,0.0001498,2]
[340671598,1729636241975,-285.9687,0.0001498,2]
[340671599,1729636241989,-151.0,0.0001498,2]
[340671600,1729636241998,-151.0,0.0001498,2]
[340671601,1729636242008,-151.0,0.0001498,2]
[340671602,1729636242017,-219.550448,0.0001498,2]
[340671603,1729636242028,-219.550448,0.0001498,2]
[340671604,1729636242037,-219.550448,0.0001498,2]
[340671605,1729636242046,-401.783917,0.0001498,2]
[340671606,1729636242055,-401.783917,0.0001498,2]
[340671607,1729636242065,-401.783917,0.0001498,2]
[340671608,1729636242074,-219.550448,0.0001498,2]
[340671609,1729636242083,-219.550448,0.0001498,2]
[340671610,1729636242093,-219.550448,0.0001498,2]
[340671611,1729636242102,-401.783917,0.0001498,2]
[340671612,1729636242111,-401.783917,0.0001498,2]
[340671613,1729636242121,-401.783917,0.0001498,2]
[340671614,1729636242132,-151.0,0.0001498,2]
[340671615,1729636242142,-151.0,0.0001498,2]
[340671616,1729636242154,-151.0,0.0001498,2]
[340671617,1729636242167,-151.0,0.0001498,2]
[340671618,1729636242176,-151.0,0.0001498,2]
[340671619,1729636242185,-151.0,0.0001498,2]
[340671620,1729636242195,-151.0,0.0001498,2]
[340671621,1729636242204,-300.176006,0.0001498,2]
[340671622,1729636242213,-300.176006,0.0001498,2]
[340671623,1729636242224,-151.0,0.0001498,2]
[340671624,1729636242234,-151.0,0.0001498,2]
[340671625,1729636242243,-300.176006,0.0001498,2]
[340671626,1729636242253,-300.176006,0.0001498,2]
[340671627,1729636242263,-166.421882,0.0001498,2]
[340671628,1729636242275,-166.421882,0.0001498,2]
[340671629,1729636242285,-166.421882,0.0001498,2]
[340671630,1729636242294,-166.421882,0.0001498,2]
[340671631,1729636242303,-166.421882,0.0001498,2]
[340671632,1729636242313,-166.421882,0.0001498,2]
[340671633,1729636242325,-151.0,0.0001498,2]
[340671634,1729636242334,-151.0,0.0001498,2]
[340671635,1729636242344,-151.0,0.0001498,2]
[340671636,1729636242352,-159.049786,0.0001498,2]
[340671637,1729636242362,-188.275566,0.0001498,2]
[340671638,1729636242372,-188.275566,0.0001498,2]
[340671639,1729636242381,-188.275566,0.0001498,2]
[340671640,1729636242390,-188.275566,0.0001498,2]
[340671641,1729636242400,-151.0,0.0001498,2]
[340671642,1729636242410,-151.0,0.0001498,2]
[340671643,1729636242419,-151.0,0.0001498,2]
[340671644,1729636242429,-151.0,0.0001498,2]
[340671645,1729636242438,-151.0,0.0001498,2]
[340671646,1729636242449,-151.0,0.0001498,2]
[340671647,1729636242458,-163.389912,0.0001498,2]
[340671648,1729636242467,-203.688168,0.0001498,2]
[340671649,1729636242477,-203.688168,0.0001498,2]
[340671650,1729636242487,-180.90007,0.0001498,2]
[340671651,1729636242496,-180.90007,0.0001498,2]
[340671652,1729636242506,-203.688168,0.0001498,2]
[340671653,1729636242515,-203.688168,0.0001498,2]
[340671654,1729636242530,-180.90007,0.0001498,2]
[340671655,1729636242539,-180.90007,0.0001498,2]
[340671656,1729636242548,-151.0,0.0001498,2]
[340671657,1729636242558,-151.0,0.0001498,2]
[340671658,1729636242567,-285.711451,0.0001498,2]
[340671659,1729636242576,-285.711451,0.0001498,2]
[340671660,1729636242585,-285.711451,0.0001498,2]
[340671661,1729636242594,-285.711451,0.0001498,2]
[340671662,1729636242603,-489.469351,0.0001498,2]
[340671663,1729636242613,-489.469351,0.0001498,2]
[340671664,1729636242622,-489.469351,0.0001498,2]
[340671665,1729636242631,-489.469351,0.0001498,2]
[340671666,1729636242640,-151.0,0.0001498,2]
[340671667,1729636242650,-151.0,0.0001498,2]
[340671668,1729636242659,-177.860471,0.0001498,2]
[340671670,1729636242668,-177.860471,0.0001498,2]
[340671671,1729636242677,-177.860471,0.0001498,2]
[340671672,1729636242686,-177.860471,0.0001498,2]
[340671673,1729636242696,-714.356498,0.0001498,2]
[340671674,1729636242705,-714.356498,0.0001498,2]
[340671675,1729636242715,-714.356498,0.0001498,2]
[340671676,1729636242724,-714.356498,0.0001498,2]
[340671677,1729636242734,-322.657935,0.0001498,2]
[340671678,1729636242743,-322.657935,0.0001498,2]
[340671679,1729636242753,-345.419078,0.0001498,2]
[340671680,1729636242762,-345.419078,0.0001498,2]
[340671681,1729636242774,-322.657935,0.0001498,2]
[340671682,1729636242783,-266.184579,0.0001498,2]
[340671683,1729636242794,-266.184579,0.0001498,2]
[340671684,1729636242803,-322.657935,0.0001498,2]
[340671685,1729636242812,-345.419078,0.0001498,2]
[340671686,1729636242823,-345.419078,0.0001498,2]
[340671687,1729636242833,-266.184579,0.0001498,2]
[340671688,1729636242842,-266.184579,0.0001498,2]
[340671689,1729636242851,-288.785469,0.0001498,2]
[340671690,1729636242861,-288.785469,0.0001498,2]
[340671691,1729636242871,-288.785469,0.0001498,2]
[340671692,1729636242880,-288.785469,0.0001498,2]
[340671693,1729636242890,-288.785469,0.0001498,2]
[340671694,1729636242899,-288.785469,0.0001498,2]
[340671695,1729636242908,-224.587698,0.0001498,2]
[340671696,1729636242918,-224.587698,0.0001498,2]
[340671697,1729636242927,-224.587698,0.0001498,2]
[340671698,1729636242937,-224.587698,0.0001498,2]
[340671699,1729636242946,-224.587698,0.0001498,2]
[340671700,1729636242958,-224.587698,0.0001498,2]
[340671701,1729636242967,-14947.9073692,0.0001498,2]
[340671702,1729636242977,-13093.7855961,0.0001498,2]
[340671706,1729636243318,-151.0,0.00014867,2]
[340671707,1729636243328,-151.0,0.00014867,2]
[340671708,1729636243337,-151.0,0.00014867,2]
[340671709,1729636243347,-151.0,0.00014867,2]
[340671710,1729636243357,-151.0,0.0001487,2]
[340671711,1729636243366,-151.0,0.0001487,2]
[340671712,1729636243376,-151.0,0.0001488,2]
[340671713,1729636243385,-996.74,0.0001498,2]
[340671717,1729636246135,-151.0,0.00014867,2]
[340671718,1729636246145,-500.0,0.00014873,2]
[340671719,1729636246154,-151.0,0.0001488,2]
[340671720,1729636246167,-151.0,0.0001496,2]
[340671721,1729636246176,-151.0,0.00014962,2]
[340671722,1729636246186,-303.4189993,0.00014973,2]
[340671723,1729636246196,-14.60387492,0.0001498,2]
[340671724,1729636246209,-136.39612508,0.0001498,2]
[340671725,1729636246220,-151.0,0.0001498,2]
[340671726,1729636246230,-151.0,0.0001498,2]
[340671727,1729636246240,-1106.04687547,0.0001498,2]
[340671778,1729637432376,-938.5765713,0.00013735,2]
[340671779,1729637432386,-418.80941687,0.00013747,2]
[340671789,1729637440279,-2082.375246,0.00013699,2]
[340671790,1729637440290,-251.73651413,0.00013747,2]
[340671791,1729637440299,-200.0,0.00013973,2]
[340671792,1729637440308,-380.0,0.00013973,2]
[340671793,1729637440318,-465.00056014,0.00014305,2]
[340671794,1729637440328,-670.545931,0.00014432,2]
[340671795,1729637440338,-300.0,0.00014748,2]
[340671796,1729637440347,-300.0,0.00014748,2]
[340671797,1729637440356,-1706.21557463,0.00014749,2]
[340671853,1729637446255,-1721.89384523,0.00014749,2]
[340671961,1729638632516,-300.0,0.00012785,2]
[340671962,1729638632526,-300.0,0.00012785,2]
[340671963,1729638632536,-12103.4745028,0.00012786,2]
[340671964,1729638632546,-169.624184,0.00012931,2]
[340671965,1729638632556,-169.624184,0.00013605,2]
[340671966,1729638632567,-961.2771292,0.00013699,2]
[340671968,1729638638736,-302.8423938,0.00013699,2]
[340671969,1729638638745,-472.489291,0.00013699,2]
[340671970,1729638638755,-281.38176279,0.000138,2]
[340671971,1729638638765,-500.0,0.00013899,2]
[340671972,1729638638775,-500.0,0.00013899,2]
[340671973,1729638638785,-500.0,0.00013899,2]
[340671974,1729638638795,-443.69700023,0.00013899,2]
[340671975,1729638638804,-500.0,0.00013899,2]
[340671977,1729638638813,-500.0,0.00013899,2]
[340671978,1729638638823,-500.0,0.00013899,2]
[340671979,1729638638833,-500.0,0.00013899,2]
[340671980,1729638638844,-500.0,0.00013899,2]
[340671981,1729638638853,-500.0,0.00013899,2]
[340671982,1729638638863,-500.0,0.00013899,2]
[340671983,1729638638873,-500.0,0.00013899,2]
[340671984,1729638638883,-500.0,0.00013899,2]
[340671985,1729638638892,-500.0,0.00013899,2]
[340671986,1729638638902,-500.0,0.00013899,2]
[340671987,1729638638912,-500.0,0.00013899,2]
[340671988,1729638638921,-500.0,0.00013899,2]
[340671989,1729638638932,-500.0,0.00013899,2]
[340671990,1729638638942,-500.0,0.00013899,2]
[340671991,1729638638952,-500.0,0.00013899,2]
[340671992,1729638638962,-500.0,0.00013899,2]
[340671993,1729638638971,-500.0,0.00013899,2]
[340671994,1729638638981,-500.0,0.00013899,2]
[340671995,1729638638991,-507.0834829,0.00013899,2]
[340671996,1729638639004,-500.0,0.00013899,2]
[340671997,1729638639015,-500.0,0.00013899,2]
[340671998,1729638639026,-500.0,0.00013899,2]
[340671999,1729638639036,-500.0,0.00013899,2]
[340672000,1729638639046,-594.25333733,0.000139,2]
[340672001,1729638639055,-500.0,0.000139,2]
[340672002,1729638639064,-500.0,0.000139,2]
[340672003,1729638639074,-500.0,0.000139,2]
[340672004,1729638639083,-500.0,0.000139,2]
[340672005,1729638639092,-500.0,0.000139,2]
[340672006,1729638639101,-500.0,0.000139,2]
[340672007,1729638639111,-756.62308594,0.000139,2]
[340672008,1729638639120,-400.0,0.00013973,2]
[340672009,1729638639129,-420.0,0.00014024,2]
[340672010,1729638639139,-420.0,0.00014064,2]
[340672011,1729638639149,-210.744449,0.00014078,2]
[340672012,1729638639159,-444.81889202,0.00014174,2]
[340672013,1729638639168,-1000.0,0.00014174,2]
[340672014,1729638639178,-1000.0,0.00014174,2]
[340672015,1729638639187,-546.79850904,0.00014174,2]
[340672016,1729638639197,-1000.0,0.00014174,2]
[340672017,1729638639206,-472.489291,0.00014384,2]
[340672018,1729638639216,-1500.0,0.00014575,2]
[340672019,1729638639226,-1007.4271702,0.00014575,2]
[340672020,1729638639235,-1500.0,0.00014575,2]
[340672021,1729638639246,-3475.34068534,0.000147,2]
[340672025,1729638640585,-1524.65931466,0.000147,2]
[340672026,1729638640595,-185.82895705,0.0001471,2]
[340672027,1729638640605,-151.0,0.0001482,2]
[340672028,1729638640615,-161.786192,0.0001482,2]
[340672029,1729638640624,-161.786192,0.0001482,2]
[340672031,1729638640634,-151.0,0.0001482,2]
[340672032,1729638640643,-151.0,0.0001482,2]
[340672034,1729638640653,-151.0,0.0001482,2]
[340672035,1729638640663,-357.178249,0.0001482,2]
[340672036,1729638640673,-357.178249,0.0001482,2]
[340672037,1729638640684,-151.0,0.00014821,2]
[340672038,1729638640698,-173.925541,0.00014821,2]
[340672039,1729638640708,-151.0,0.00014821,2]
[340672040,1729638640718,-151.0,0.00014821,2]
[340672041,1729638640729,-151.0,0.00014821,2]
[340672042,1729638640739,-151.0,0.00014821,2]
[340672043,1729638640749,-151.0,0.00014821,2]
[340672044,1729638640760,-161.026138,0.00014821,2]
[340672045,1729638640770,-161.026138,0.00014821,2]
[340672046,1729638640780,-151.0,0.00014821,2]
[340672047,1729638640789,-151.0,0.00014821,2]
[340672048,1729638640799,-151.0,0.0001483,2]
[340672049,1729638640809,-151.0,0.0001483,2]
[340672050,1729638640819,-161.786192,0.0001483,2]
[340672051,1729638640829,-161.786192,0.0001483,2]
[340672052,1729638640840,-161.786192,0.0001483,2]
[340672053,1729638640849,-161.786192,0.0001483,2]
[340672054,1729638640859,-151.0,0.0001483,2]
[340672055,1729638640870,-151.0,0.0001483,2]
[340672056,1729638640879,-151.0,0.0001483,2]
[340672057,1729638640889,-151.0,0.0001483,2]
[340672058,1729638640899,-151.0,0.0001483,2]
[340672059,1729638640908,-152.867082,0.0001483,2]
[340672060,1729638640919,-151.0,0.0001483,2]
[340672061,1729638640928,-151.0,0.0001483,2]
[340672062,1729638640938,-151.0,0.0001483,2]
[340672063,1729638640949,-151.0,0.0001483,2]
[340672064,1729638640959,-151.0,0.0001483,2]
[340672065,1729638640969,-357.178249,0.0001483,2]
[340672066,1729638640978,-357.178249,0.0001483,2]
[340672067,1729638640988,-244.734676,0.0001483,2]
[340672068,1729638640997,-357.178249,0.0001483,2]
[340672069,1729638641006,-244.734676,0.0001483,2]
[340672070,1729638641015,-357.178249,0.0001483,2]
[340672071,1729638641024,-151.0,0.0001483,2]
[340672072,1729638641034,-151.0,0.0001483,2]
[340672073,1729638641043,-151.0,0.0001483,2]
[340672074,1729638641053,-151.0,0.0001483,2]
[340672075,1729638641062,-151.0,0.0001483,2]
[340672076,1729638641072,-151.0,0.0001483,2]
[340672077,1729638641081,-151.0,0.0001483,2]
[340672078,1729638641090,-151.0,0.0001483,2]
[340672079,1729638641099,-221.75566,0.0001483,2]
[340672080,1729638641109,-151.0,0.0001483,2]
[340672081,1729638641118,-151.0,0.0001483,2]
[340672082,1729638641127,-161.026138,0.0001483,2]
[340672083,1729638641136,-161.026138,0.0001483,2]
[340672084,1729638641146,-151.0,0.0001483,2]
[340672085,1729638641155,-151.0,0.0001483,2]
[340672086,1729638641165,-151.0,0.0001483,2]
[340672087,1729638641174,-151.0,0.0001483,2]
[340672088,1729638641184,-151.0,0.0001483,2]
[340672089,1729638641194,-151.0,0.0001483,2]
[340672090,1729638641203,-151.0,0.0001483,2]
[340672091,1729638641213,-151.0,0.0001483,2]
[340672092,1729638641222,-241.070351,0.0001483,2]
[340672093,1729638641232,-241.070351,0.0001483,2]
[340672094,1729638641242,-241.070351,0.0001483,2]
[340672095,1729638641251,-241.070351,0.0001483,2]
[340672096,1729638641446,-151.0,0.0001483,2]
[340672097,1729638641457,-151.0,0.0001483,2]
[340672098,1729638641468,-201.095233,0.0001483,2]
[340672099,1729638641477,-151.0,0.0001483,2]
[340672100,1729638641486,-151.0,0.0001483,2]
[340672101,1729638641496,-151.0,0.0001483,2]
[340672102,1729638641505,-151.0,0.0001483,2]
[340672103,1729638641515,-151.0,0.0001483,2]
[340672104,1729638641525,-151.0,0.0001483,2]
[340672105,1729638641536,-151.0,0.0001483,2]
[340672106,1729638641545,-268.604707,0.0001483,2]
[340672107,1729638641556,-171.426871,0.0001483,2]
[340672108,1729638641566,-171.426871,0.0001483,2]
[340672109,1729638641576,-171.426871,0.0001483,2]
[340672110,1729638641585,-171.426871,0.0001483,2]
[340672111,1729638641594,-161.328968,0.0001483,2]
[340672112,1729638641603,-161.328968,0.0001483,2]
[340672113,1729638641612,-151.0,0.0001483,2]
[340672114,1729638641621,-151.0,0.0001483,2]
[340672115,1729638641630,-161.328968,0.0001483,2]
[340672116,1729638641639,-161.328968,0.0001483,2]
[340672117,1729638641648,-151.0,0.0001483,2]
[340672118,1729638641658,-151.0,0.0001483,2]
[340672119,1729638641667,-404.57802924,0.00014839,2]
[340672120,1729638641677,-286.898978,0.0001484,2]
[340672121,1729638641688,-161.786192,0.0001484,2]
[340672122,1729638641702,-161.786192,0.0001484,2]
[340672123,1729638641712,-161.786192,0.0001484,2]
[340672124,1729638641721,-161.786192,0.0001484,2]
[340672125,1729638641730,-151.0,0.0001484,2]
[340672126,1729638641739,-151.0,0.0001484,2]
[340672127,1729638641749,-151.0,0.0001484,2]
[340672128,1729638641758,-167.366336,0.0001484,2]
[340672129,1729638641767,-151.0,0.0001484,2]
[340672130,1729638641778,-151.0,0.0001484,2]
[340672131,1729638641787,-151.0,0.0001484,2]
[340672132,1729638641796,-151.0,0.0001484,2]
[340672133,1729638641806,-151.0,0.0001484,2]
[340672134,1729638641815,-357.178249,0.0001484,2]
[340672135,1729638641825,-357.178249,0.0001484,2]
[340672136,1729638641835,-244.734676,0.0001484,2]
[340672137,1729638641845,-357.178249,0.0001484,2]
[340672138,1729638641856,-244.734676,0.0001484,2]
[340672139,1729638641866,-357.178249,0.0001484,2]
[340672140,1729638641875,-151.0,0.0001484,2]
[340672141,1729638641884,-151.0,0.0001484,2]
[340672142,1729638641893,-151.0,0.0001484,2]
[340672143,1729638641903,-151.0,0.0001484,2]
[340672144,1729638641912,-151.0,0.0001484,2]
[340672145,1729638641922,-151.0,0.0001484,2]
[340672146,1729638641931,-151.0,0.0001484,2]
[340672147,1729638641940,-161.026138,0.0001484,2]
[340672148,1729638641950,-161.026138,0.0001484,2]
[340672149,1729638641959,-151.0,0.0001484,2]
[340672150,1729638641968,-151.0,0.0001484,2]
[340672151,1729638641977,-151.0,0.0001484,2]
[340672152,1729638641986,-151.0,0.0001484,2]
[340672153,1729638641995,-151.0,0.0001484,2]
[340672154,1729638642004,-241.070351,0.0001484,2]
[340672155,1729638642013,-241.070351,0.0001484,2]
[340672156,1729638642023,-151.0,0.0001484,2]
[340672157,1729638642031,-185.062575,0.0001484,2]
[340672158,1729638642041,-151.0,0.0001484,2]
[340672159,1729638642051,-151.0,0.0001484,2]
[340672160,1729638642060,-171.426871,0.0001484,2]
[340672161,1729638642071,-171.426871,0.0001484,2]
[340672162,1729638642085,-161.328968,0.0001484,2]
[340672163,1729638642094,-151.0,0.0001484,2]
[340672164,1729638642104,-161.328968,0.0001484,2]
[340672165,1729638642113,-224.88168,0.0001484,2]
[340672166,1729638642123,-151.0,0.0001484,2]
[340672167,1729638642132,-151.0,0.0001484,2]
[340672168,1729638642141,-151.0,0.0001484,2]
[340672169,1729638642150,-151.0,0.0001484,2]
[340672170,1729638642159,-151.0,0.0001484,2]
[340672171,1729638642168,-151.0,0.0001484,2]
[340672172,1729638642178,-180.105604,0.0001484,2]
[340672173,1729638642187,-180.105604,0.0001484,2]
[340672174,1729638642196,-290.486338,0.0001484,2]
[340672175,1729638642205,-299.000693,0.0001484,2]
[340672176,1729638642215,-32151.09894304,0.0001484,2]
[340672205,1729638763942,500.0,0.00022,60]
[340672237,1729639719105,248645.35511713,0.00021,60]
[340672280,1729639832719,-480.3026586,0.00013655,2]
[340672282,1729639832729,-632.059762,0.00013699,2]
[340672283,1729639832741,-236.244645,0.00013699,2]
[340672284,1729639832753,-400.0,0.00013973,2]
[340672285,1729639832763,-599.23859194,0.00014598,2]
[340672286,1729639832773,-185.82895705,0.00014721,2]
[340672287,1729639832784,-216.3131954,0.0001473,2]
[340672288,1729639832796,-346.3586386,0.0001473,2]
[340672289,1729639832836,-437.328166,0.0001473,2]
[340672290,1729639832847,-675.071834,0.0001474,2]
[340672327,1729639839027,-316.029881,0.0001381,2]
[340672328,1729639839036,-284.5916457,0.0001474,2]
[340672329,1729639839046,-7992.04449654,0.000148,2]
[340672336,1729639840921,-41923.63709857,0.000148,2]
[340672337,1729639840935,-56833.67566228,0.000148,2]
[340672402,1729641031794,-5084.07145575,0.00013,2]
[340672527,1729641038178,-3735.92854425,0.00013,2]
[340672528,1729641038187,-864.8871681,0.00013246,2]
[340672529,1729641038198,-1035.493934,0.00013313,2]
[340672530,1729641038208,-300.0,0.0001348,2]
[340672531,1729641038217,-300.0,0.0001348,2]
[340672532,1729641038227,-728.062741,0.00013699,2]
[340672533,1729641038237,-603.87874,0.00013699,2]
[340672534,1729641038247,-163.756134,0.00013743,2]
[340672535,1729641038256,-163.756134,0.00013887,2]
[340672536,1729641038265,-400.0,0.00013973,2]
[340672537,1729641038275,-163.756134,0.0001403,2]
[340672538,1729641038284,-163.756134,0.00014173,2]
[340672539,1729641038293,-385.1401021,0.00014178,2]
[340672540,1729641038303,-153.0,0.00014222,2]
[340672541,1729641038311,-153.0,0.00014222,2]
[340672542,1729641038321,-163.756134,0.00014316,2]
[340672543,1729641038330,-728.062741,0.00014384,2]
[340672544,1729641038340,-163.756134,0.00014459,2]
[340672545,1729641038349,-153.0,0.00014552,2]
[340672546,1729641038360,-253.24358652,0.00014629,2]
[340672547,1729641038369,-847.24793507,0.0001463,2]
[340672548,1729641038381,-7994.2883239,0.0001463,2]
[340672549,1729641038390,-520.00484481,0.0001464,2]
[340672550,1729641038399,-520.00484478,0.0001466,2]
[340672551,1729641038408,-520.00484478,0.0001468,2]
[340672552,1729641038417,-520.00484478,0.000147,2]
[340672553,1729641038426,-520.00484478,0.0001472,2]
[340672554,1729641038435,-151.0,0.00014728,2]
[340672555,1729641038443,-186.329205,0.00014728,2]
[340672556,1729641038453,-186.329205,0.00014728,2]
[340672557,1729641038462,-151.0,0.00014728,2]
[340672558,1729641038471,-151.0,0.00014728,2]
[340672559,1729641038481,-151.0,0.00014728,2]
[340672560,1729641038490,-281.248742,0.00014728,2]
[340672561,1729641038499,-151.0,0.00014728,2]
[340672562,1729641038509,-151.0,0.00014728,2]
[340672563,1729641038519,-281.248742,0.00014728,2]
[340672564,1729641038529,-151.0,0.00014728,2]
[340672565,1729641038539,-151.0,0.00014728,2]
[340672566,1729641038550,-184.898505,0.00014728,2]
[340672567,1729641038562,-151.0,0.00014728,2]
[340672568,1729641038571,-184.898505,0.00014728,2]
[340672569,1729641038581,-151.0,0.00014728,2]
[340672570,1729641038590,-555.218748,0.00014728,2]
[340672571,1729641038600,-555.218748,0.00014728,2]
[340672572,1729641038609,-151.0,0.0001473,2]
[340672573,1729641038619,-1012.554128,0.0001473,2]
[340672574,1729641038627,-210.123205,0.0001473,2]
[340672575,1729641038637,-151.0,0.0001473,2]
[340672576,1729641038646,-210.123205,0.0001473,2]
[340672577,1729641038656,-151.0,0.0001473,2]
[340672578,1729641038665,-151.0,0.0001473,2]
[340672579,1729641038675,-151.0,0.0001473,2]
[340672580,1729641038688,-151.0,0.0001473,2]
[340672581,1729641038697,-151.0,0.0001473,2]
[340672582,1729641038708,-151.0,0.0001473,2]
[340672583,1729641038718,-389.475864,0.0001473,2]
[340672584,1729641038729,-389.475864,0.0001473,2]
[340672585,1729641038739,-389.475864,0.0001473,2]
[340672586,1729641038748,-389.475864,0.0001473,2]
[340672587,1729641038757,-241.793354,0.0001473,2]
[340672588,1729641038768,-241.793354,0.0001473,2]
[340672589,1729641038777,-151.0,0.0001473,2]
[340672590,1729641038786,-241.793354,0.0001473,2]
[340672591,1729641038796,-241.793354,0.0001473,2]
[340672592,1729641038806,-186.329205,0.0001473,2]
[340672593,1729641038815,-186.329205,0.0001473,2]
[340672594,1729641038825,-151.0,0.0001473,2]
[340672595,1729641038836,-151.0,0.0001473,2]
[340672596,1729641038846,-186.329205,0.0001473,2]
[340672597,1729641038857,-186.329205,0.0001473,2]
[340672598,1729641038868,-500.049549,0.0001473,2]